bitfinex-derivatives/quotes_BTCF0:USTF0_20260214
["timestamp","ask_amount","ask_price","bid_price","bid_amount"]
[1771076655318,0.014411,69419.0,69410.0,0.01456]
[1771076655518,0.014411,69420.0,69410.0,0.173093]
[1771076656125,0.014411,69421.0,69411.0,0.014413]
[1771076656320,0.014411,69420.0,69411.0,0.014413]
[1771076657421,0.014411,69421.0,69411.0,0.014413]
[1771076657727,0.014411,69421.0,69412.0,0.01456]
[1771076659028,0.014411,69421.0,69411.0,0.028826]
[1771076659327,0.028971,69422.0,69412.0,0.028973]
[1771076659527,0.014411,69421.0,69412.0,0.028973]
[1771076660223,0.01456,69422.0,69402.0,0.17936125]
[1771076660224,0.014412,69418.0,69402.0,0.17936125]
[1771076660527,0.014412,69417.0,69407.0,0.014414]
[1771076660727,0.014412,69417.0,69408.0,0.01456]
[1771076661120,0.014412,69417.0,69408.0,0.028974]
[1771076661827,0.014412,69417.0,69407.0,0.014414]
[1771076662020,0.014412,69417.0,69408.0,0.01456]
[1771076662827,0.014412,69417.0,69408.0,0.028973]
[1771076664124,0.014411,69418.0,69408.0,0.028973]
[1771076664428,0.01456,69419.0,69410.0,0.014413]
[1771076664620,0.01456,69419.0,69411.0,0.028973]
[1771076664821,0.01441,69426.0,69414.0,0.014412]
[1771076665024,0.01456,69423.0,69415.0,0.028972]
[1771076665225,0.01456,69423.0,69415.0,0.01456]
[1771076665730,0.014411,69421.0,69410.0,0.014413]
[1771076665919,0.014411,69421.0,69411.0,0.01456]
[1771076666122,0.17574688,69422.0,69412.0,0.014413]
[1771076666420,0.014411,69421.0,69411.0,0.028973]
[1771076666626,0.01456,69420.0,69411.0,0.028973]
[1771076667830,0.00377432,69420.0,69411.0,0.028973]
[1771076668031,0.014411,69423.0,69411.0,0.028973]
[1771076668226,0.01456,69427.0,69420.0,0.014411]
[1771076668426,0.014409,69431.0,69421.0,0.014411]
[1771076668627,0.01456,69430.0,69423.0,0.01441]
[1771076669529,0.158568,69436.0,69426.0,0.01441]
[1771076669723,0.15872,69436.0,69430.0,0.014409]
[1771076670026,0.15872,69436.0,69431.0,0.014409]
[1771076670227,0.01456,69437.0,69433.0,0.014408]
[1771076670434,0.14416,69442.0,69434.0,0.014408]
[1771076670731,0.01456,69441.0,69432.0,0.014408]
[1771076671332,0.028967,69441.0,69432.0,0.014408]
[1771076672134,0.01818132,69441.0,69432.0,0.014408]
[1771076672940,0.01818132,69441.0,69395.0,0.16860888]
[1771076672941,0.18781672,69441.0,69395.0,0.16860888]
[1771076673233,0.18781672,69441.0,69408.0,0.014413]
[1771076673234,0.014411,69419.0,69408.0,0.014413]
[1771076673433,0.014411,69418.0,69409.0,0.028973]
[1771076673829,0.014412,69417.0,69409.0,0.028973]
[1771076674332,0.014411,69419.0,69411.0,0.014413]
[1771076674525,0.014411,69422.0,69415.0,0.014412]
[1771076674731,0.014411,69422.0,69416.0,0.01456]
[1771076674929,0.01441,69423.0,69416.0,0.01456]
[1771076675432,0.14416,69426.0,69417.0,0.014412]
[1771076675735,0.01456,69429.0,69420.0,0.014411]
[1771076675925,0.01456,69429.0,69421.0,0.01456]
[1771076676125,0.01456,69429.0,69423.0,0.01441]
[1771076676334,0.01456,69429.0,69422.0,0.014411]
[1771076676929,0.014409,69430.0,69422.0,0.014411]
[1771076677143,0.01456,69431.0,69425.0,0.01441]
[1771076677632,0.01456,69433.0,69424.0,0.02897]
[1771076677933,0.028968,69433.0,69425.0,0.01441]
[1771076678132,0.01456,69433.0,69424.0,0.02897]
[1771076678334,0.01456,69433.0,69425.0,0.01441]
[1771076678637,0.01456,69433.0,69426.0,0.01441]
[1771076679833,0.01456,69433.0,69427.0,0.014409]
[1771076680233,0.01456,69433.0,69427.0,0.01441]
[1771076680534,0.01456,69440.0,69428.0,0.20167042]
[1771076680734,0.01456,69440.0,69430.0,0.014409]
[1771076680735,0.014407,69439.0,69430.0,0.014409]
[1771076680935,0.014407,69439.0,69431.0,0.01456]
[1771076681334,0.028967,69440.0,69431.0,0.028969]
[1771076682243,0.01456,69440.0,69432.0,0.014408]
[1771076682433,0.028967,69440.0,69431.0,0.028969]
[1771076685140,0.01456,69440.0,69433.0,0.014408]
[1771076685439,0.028967,69440.0,69431.0,0.043378]
[1771076685636,0.028967,69440.0,69431.0,0.028969]
[1771076685838,0.014407,69439.0,69431.0,0.028969]
[1771076686030,0.14416,69443.0,69431.0,0.028969]
[1771076686031,0.14416,69443.0,69436.0,0.014408]
[1771076686227,0.14416,69443.0,69437.0,0.028814]
[1771076686433,0.14416,69443.0,69437.0,0.014407]
[1771076686838,0.14416,69443.0,69438.0,0.014407]
[1771076687235,0.14416,69443.0,69436.0,0.028968]
[1771076688337,0.014407,69442.0,69436.0,0.01456]
[1771076689138,0.014407,69439.0,69432.0,0.01456]
[1771076689534,0.014407,69440.0,69432.0,0.01456]
[1771076692550,0.028967,69441.0,69432.0,0.028969]
[1771076692749,0.028967,69441.0,69432.0,0.01456]
[1771076692941,0.014407,69440.0,69432.0,0.01456]
[1771076693445,0.028967,69441.0,69432.0,0.028969]
[1771076694551,0.014406,69444.0,69432.0,0.014409]
[1771076694840,0.16997458,69472.0,69463.0,0.014402]
[1771076695046,0.16997458,69472.0,69464.0,0.014402]
[1771076695244,0.18453458,69472.0,69463.0,0.01456]
[1771076695746,0.19893458,69472.0,69463.0,0.01456]
[1771076696044,0.16697458,69501.0,69485.0,0.014397]
[1771076696248,0.19892958,69500.0,69488.0,0.014397]
[1771076696441,0.014395,69498.0,69487.0,0.01456]
[1771076696650,0.014395,69497.0,69487.0,0.01456]
[1771076696944,0.01456,69496.0,69487.0,0.01456]
[1771076697947,0.01456,69498.0,69488.0,0.01456]
[1771076698244,0.01456,69498.0,69488.0,0.028957]
[1771076698845,0.01456,69498.0,69488.0,0.01456]
[1771076699843,0.01456,69498.0,69484.0,0.158518]
[1771076700150,0.16997458,69495.0,69485.0,0.028957]
[1771076700444,0.18453458,69494.0,69485.0,0.01456]
[1771076700646,0.18453458,69494.0,69482.0,0.014398]
[1771076700947,0.18453458,69494.0,69483.0,0.01456]
[1771076701148,0.18453458,69494.0,69481.0,0.014398]
[1771076701447,0.17177435,69493.0,69482.0,0.01456]
[1771076701746,0.17177435,69493.0,69482.0,0.028958]
[1771076701948,0.17177435,69493.0,69483.0,0.014398]
[1771076702447,0.01456,69494.0,69456.0,0.18020009]
[1771076702448,0.17177435,69480.0,69456.0,0.18020009]
[1771076702639,0.014402,69466.0,69457.0,0.14408]
[1771076702845,0.014402,69466.0,69454.0,0.014404]
[1771076703045,0.014401,69467.0,69455.0,0.028964]
[1771076703240,0.014401,69467.0,69452.0,0.0145768]
[1771076703442,0.014402,69462.0,69449.0,0.14408]
[1771076703648,0.014402,69462.0,69440.0,0.18020009]
[1771076703649,0.18633435,69461.0,69440.0,0.18020009]
[1771076703951,0.18633435,69461.0,69435.0,0.014408]
[1771076703952,0.18617735,69458.0,69446.0,0.014406]
[1771076704150,0.17177435,69456.0,69447.0,0.01456]
[1771076704449,0.00010373,69455.0,69447.0,0.01456]
[1771076704841,0.00010373,69455.0,69451.0,0.014404]
[1771076705145,0.158482,69464.0,69457.0,0.014403]
[1771076705146,0.14408,69464.0,69457.0,0.014403]
[1771076705350,0.15864,69464.0,69456.0,0.014403]
[1771076705845,0.15864,69464.0,69456.0,0.028963]
[1771076706044,6.907e-05,69463.0,69456.0,0.028963]
[1771076706739,6.907e-05,69463.0,69456.0,0.01456]
[1771076706944,0.17184342,69463.0,69445.0,0.014406]
[1771076707148,0.17184342,69463.0,69447.0,0.014405]
[1771076707149,0.014403,69459.0,69447.0,0.014405]
[1771076707352,0.014403,69459.0,69446.0,0.15864]
[1771076707544,0.01456,69458.0,69446.0,0.15864]
[1771076707745,0.01456,69458.0,69446.0,0.173046]
[1771076707946,0.01456,69458.0,69446.0,0.15864]
[1771076708246,0.01456,69458.0,69447.0,0.014405]
[1771076708551,0.01456,69458.0,69446.0,0.173046]
[1771076708750,0.01456,69458.0,69447.0,0.014405]
[1771076709350,0.01456,69458.0,69447.0,0.028965]
[1771076709651,0.01456,69458.0,69448.0,0.014405]
[1771076710356,0.01456,69458.0,69447.0,0.028965]
[1771076710548,0.028963,69458.0,69447.0,0.01456]
[1771076710750,0.028963,69458.0,69447.0,0.028965]
[1771076710939,0.01456,69458.0,69448.0,0.014405]
[1771076711438,0.01456,69458.0,69447.0,0.01456]
[1771076711439,0.014403,69457.0,69447.0,0.01456]
[1771076711639,0.01456,69458.0,69447.0,0.01456]
[1771076712050,0.01456,69458.0,69449.0,0.014405]
[1771076712245,0.01456,69458.0,69448.0,0.014405]
[1771076712551,0.01456,69458.0,69447.0,0.01456]
[1771076712752,0.01456,69458.0,69448.0,0.01456]
[1771076713251,0.028963,69458.0,69448.0,0.01456]
[1771076713645,0.01456,69458.0,69448.0,0.028965]
[1771076714650,0.028963,69458.0,69448.0,0.01456]
[1771076715150,0.01456,69458.0,69448.0,0.028965]
[1771076715745,0.014405,69449.0,69441.0,0.01456]
[1771076716052,6.907e-05,69448.0,69442.0,0.014406]
[1771076718250,6.907e-05,69448.0,69441.0,0.014407]
[1771076718451,0.01456,69453.0,69448.0,0.014405]
[1771076718862,0.01456,69456.0,69448.0,0.18020009]
[1771076719156,0.01456,69456.0,69446.0,0.014406]
[1771076719354,0.014403,69458.0,69444.0,0.014406]
[1771076719651,0.014404,69454.0,69445.0,0.01456]
[1771076719856,0.014404,69453.0,69445.0,0.01456]
[1771076720057,0.014404,69453.0,69444.0,0.14408]
[1771076720254,0.028964,69454.0,69444.0,0.14408]
[1771076720555,0.028964,69454.0,69444.0,0.158486]
[1771076720556,0.01456,69454.0,69444.0,0.158486]
[1771076720953,0.028964,69454.0,69444.0,0.14408]
[1771076721253,0.00375429,69454.0,69444.0,0.14408]
[1771076721444,0.00375429,69454.0,69445.0,0.014406]
[1771076721850,0.00375429,69454.0,69446.0,0.014406]
[1771076722345,0.00375429,69454.0,69449.0,0.014405]
[1771076723051,0.014403,69460.0,69449.0,0.014405]
[1771076723256,0.01456,69457.0,69449.0,0.014405]
[1771076723659,0.01456,69457.0,69449.0,0.01456]
[1771076726158,0.0145,69457.0,69449.0,0.01456]
[1771076726354,0.14408,69461.0,69449.0,0.01456]
[1771076726560,0.01456,69460.0,69451.0,0.014405]
[1771076726952,0.01456,69460.0,69453.0,0.014404]
[1771076727261,0.01456,69460.0,69452.0,0.014404]
[1771076727453,0.01456,69460.0,69453.0,0.014404]
[1771076727859,0.01456,69460.0,69452.0,0.014404]
[1771076729056,0.01456,69460.0,69449.0,0.028965]
[1771076729363,0.01456,69463.0,69456.0,0.014404]
[1771076729562,0.01456,69463.0,69457.0,0.014403]
[1771076729758,0.01456,69463.0,69456.0,0.014403]
[1771076729964,0.15864,69468.0,69459.0,0.19460309]
[1771076730262,0.15864,69468.0,69460.0,0.01456]
[1771076731858,0.01456,69473.0,69466.0,0.014401]
[1771076732161,0.01224266,69473.0,69466.0,0.014401]
[1771076733055,0.01452,69476.0,69466.0,0.014401]
[1771076733455,0.01452,69476.0,69467.0,0.014401]
[1771076733660,0.14408,69478.0,69467.0,0.014401]
[1771076733858,0.14408,69478.0,69468.0,0.014401]
[1771076734063,0.014397,69487.0,69474.0,0.0144]
[1771076734267,0.028917,69486.0,69474.0,0.02892]
[1771076735161,0.01452,69486.0,69475.0,0.0144]
[1771076735760,0.00610164,69486.0,69477.0,0.1655307]
[1771076735957,0.00610164,69486.0,69478.0,0.01452]
[1771076736157,0.00610164,69486.0,69478.0,0.028919]
[1771076736360,0.00610164,69486.0,69479.0,0.01452]
[1771076736869,0.17286358,69487.0,69479.0,0.01452]
[1771076737169,0.014398,69485.0,69479.0,0.01452]
[1771076737867,0.014398,69484.0,69478.0,0.01452]
[1771076741070,0.014398,69485.0,69478.0,0.01452]
[1771076741768,0.14408,69488.0,69480.0,0.014399]
[1771076742158,0.01452,69489.0,69478.0,0.01452]
[1771076742358,0.14404,69496.0,69485.0,0.014398]
[1771076742659,0.014397,69489.0,69483.0,0.01452]
[1771076742861,0.014397,69488.0,69483.0,0.01452]
[1771076743468,0.014397,69487.0,69483.0,0.01452]
[1771076743662,0.1669733,69487.0,69467.0,0.1756662]
[1771076743858,0.1669733,69481.0,69471.0,0.01452]
[1771076744064,0.028918,69484.0,69471.0,0.02892]
[1771076744268,0.01452,69484.0,69474.0,0.0144]
[1771076744470,0.01452,69487.0,69478.0,0.014399]
[1771076744769,0.01452,69487.0,69478.0,0.028919]
[1771076744963,0.01452,69487.0,69479.0,0.014399]
[1771076745562,0.014396,69492.0,69478.0,0.15856]
[1771076745563,0.01452,69492.0,69478.0,0.15856]
[1771076745867,0.01452,69492.0,69483.0,0.014398]
[1771076746068,0.14404,69496.0,69486.0,0.014397]
[1771076746069,0.01452,69495.0,69486.0,0.014397]
[1771076747671,0.14404,69496.0,69486.0,0.014397]
[1771076748367,0.01452,69502.0,69494.0,0.014396]
[1771076748575,0.01452,69503.0,69494.0,0.01452]
[1771076749266,0.14404,69507.0,69497.0,0.014395]
[1771076749460,0.1332443,69507.0,69498.0,0.01452]
[1771076749970,0.014394,69504.0,69492.0,0.1900622]
[1771076750275,0.014393,69505.0,69492.0,0.1900622]
[1771076750276,0.014393,69505.0,69494.0,0.014396]
[1771076750465,0.014395,69500.0,69493.0,0.15856]
[1771076750664,0.014394,69503.0,69493.0,0.15856]
[1771076750865,0.014394,69504.0,69493.0,0.172956]
[1771076754277,0.1813683,69499.0,69488.0,0.014397]
[1771076754466,0.028915,69498.0,69489.0,0.01452]
[1771076754665,0.014395,69497.0,69490.0,0.01452]
[1771076755577,0.014394,69503.0,69493.0,0.014396]
[1771076755783,0.014394,69501.0,69494.0,0.01452]
[1771076756074,0.014394,69500.0,69494.0,0.01452]
[1771076756275,0.014394,69501.0,69494.0,0.01452]
[1771076756481,0.014394,69502.0,69494.0,0.01452]
[1771076758264,0.014394,69502.0,69491.0,0.014396]
[1771076758469,0.014394,69501.0,69492.0,0.15852]
[1771076758675,0.5,69500.0,69492.0,0.15852]
[1771076758876,0.48920431,69500.0,69492.0,0.15852]
[1771076759778,0.48920431,69500.0,69493.0,0.15852]
[1771076760173,0.50359831,69500.0,69493.0,0.15852]
[1771076760374,0.48920431,69500.0,69493.0,0.15852]
[1771076761280,0.50359931,69500.0,69493.0,0.15852]
[1771076761773,0.48920431,69500.0,69493.0,0.15852]
[1771076761985,0.1621573,69507.0,69498.0,0.014395]
[1771076762174,0.1621573,69507.0,69498.0,0.01452]
[1771076762477,0.1765503,69507.0,69498.0,0.01452]
[1771076762677,0.014393,69506.0,69498.0,0.01452]
[1771076762980,0.1621573,69507.0,69498.0,0.01452]
[1771076762981,0.014393,69507.0,69498.0,0.01452]
[1771076763577,0.028786,69507.0,69498.0,0.01452]
[1771076763777,0.014393,69507.0,69498.0,0.01452]
[1771076765780,0.014393,69507.0,69498.0,0.028915]
[1771076765981,0.028786,69507.0,69498.0,0.19404158]
[1771076766183,0.014393,69506.0,69498.0,0.19404158]
[1771076766687,0.014393,69508.0,69498.0,0.19404158]
[1771076766881,0.014393,69507.0,69498.0,0.19404158]
[1771076767078,0.014393,69509.0,69499.0,0.014395]
[1771076767475,0.014393,69509.0,69498.0,0.19404158]
[1771076767681,0.014392,69512.0,69500.0,0.014394]
[1771076767890,0.014392,69510.0,69501.0,0.15852]
[1771076768083,0.014393,69509.0,69501.0,0.15852]
[1771076768686,0.0128229,69509.0,69501.0,0.15852]
[1771076768888,0.01439,69521.0,69504.0,0.19391458]
[1771076769191,0.014391,69516.0,69506.0,0.19391458]
[1771076769689,0.014391,69518.0,69508.0,0.014393]
[1771076769888,0.014391,69518.0,69506.0,0.19391458]
[1771076769889,0.014391,69517.0,69509.0,0.01452]
[1771076770090,0.014391,69517.0,69510.0,0.01452]
[1771076770387,0.01439,69521.0,69511.0,0.014392]
[1771076771286,0.01439,69520.0,69511.0,0.014392]
[1771076771482,0.014391,69518.0,69510.0,0.01452]
[1771076771688,0.18260519,69515.0,69497.0,0.17952158]
[1771076771987,0.014393,69506.0,69498.0,0.15852]
[1771076772186,0.014393,69506.0,69499.0,0.01452]
[1771076772577,0.014394,69505.0,69499.0,0.01452]
[1771076774082,0.014392,69510.0,69501.0,0.014394]
[1771076774393,0.014392,69510.0,69502.0,0.01452]
[1771076775691,0.014392,69510.0,69502.0,0.028914]
[1771076775887,0.014392,69511.0,69502.0,0.028914]
[1771076776084,0.01452,69514.0,69502.0,0.028914]
[1771076776395,0.014391,69517.0,69506.0,0.19391458]
[1771076776588,0.028783,69515.0,69507.0,0.15852]
[1771076776789,0.014392,69514.0,69507.0,0.15852]
[1771076777291,0.03067898,69524.0,69511.0,0.014392]
[1771076777484,0.014392,69513.0,69502.0,0.17952158]
[1771076777694,0.014392,69512.0,69503.0,0.15852]
[1771076777992,0.014392,69513.0,69504.0,0.014394]
[1771076778186,0.014392,69512.0,69503.0,0.15852]
[1771076778391,0.014392,69511.0,69503.0,0.15852]
[1771076778792,0.014392,69512.0,69503.0,0.15852]
[1771076778995,0.014392,69512.0,69503.0,0.172914]
[1771076779190,0.014392,69512.0,69504.0,0.014394]
[1771076779498,0.014392,69512.0,69503.0,0.15852]
[1771076779691,0.014392,69510.0,69501.0,0.19391558]
[1771076779887,0.014393,69508.0,69502.0,0.01452]
[1771076780092,0.014393,69508.0,69503.0,0.15848]
[1771076780987,0.014392,69512.0,69503.0,0.172874]
[1771076781183,0.014392,69512.0,69504.0,0.15848]
[1771076782090,0.014392,69512.0,69504.0,0.172874]
[1771076782495,0.014392,69513.0,69505.0,0.014393]
[1771076783090,0.014391,69516.0,69505.0,0.014393]
[1771076783296,0.014391,69518.0,69509.0,0.19391358]
[1771076783594,0.01439,69522.0,69511.0,0.19391358]
[1771076783898,0.01439,69522.0,69513.0,0.19391358]
[1771076784098,0.04506898,69524.0,69514.0,0.014391]
[1771076784293,0.05945898,69524.0,69515.0,0.01452]
[1771076784700,0.01439,69523.0,69515.0,0.01452]
[1771076785798,0.03067898,69524.0,69515.0,0.01452]
[1771076786501,0.01439,69521.0,69515.0,0.01452]
[1771076786694,0.14396,69541.0,69522.0,0.17952158]
[1771076786898,0.014388,69533.0,69523.0,0.15848]
[1771076787300,0.014388,69533.0,69523.0,0.33800158]
[1771076787703,0.014388,69533.0,69524.0,0.17952158]
[1771076788409,0.014386,69539.0,69528.0,0.19390958]
[1771076788603,0.014389,69528.0,69515.0,0.19391258]
[1771076788809,0.014388,69530.0,69519.0,0.01439]
[1771076789002,0.014388,69533.0,69520.0,0.17952158]
[1771076789309,0.014386,69542.0,69526.0,0.014389]
[1771076789506,0.014384,69551.0,69539.0,0.014386]
[1771076789696,0.014384,69549.0,69540.0,0.15848]
[1771076789895,0.014385,69546.0,69538.0,0.17952158]
[1771076790105,0.014385,69545.0,69539.0,0.15848]
[1771076790299,0.014385,69545.0,69540.0,0.01452]
[1771076790609,0.014385,69545.0,69532.0,0.014388]
[1771076790610,0.16821419,69548.0,69529.0,0.014388]
[1771076790816,0.014387,69538.0,69530.0,0.15848]
[1771076791110,0.014387,69535.0,69531.0,0.01452]
[1771076791310,0.014387,69535.0,69525.0,0.014389]
[1771076791510,0.014387,69534.0,69526.0,0.15848]
[1771076791706,0.014388,69533.0,69526.0,0.15848]
[1771076792007,0.014388,69529.0,69526.0,0.15848]
[1771076792202,0.014388,69529.0,69527.0,0.01452]
[1771076792404,0.014388,69532.0,69528.0,0.01452]
[1771076792606,0.014387,69535.0,69529.0,0.01452]
[1771076792802,0.014387,69536.0,69530.0,0.01452]
[1771076793111,0.014387,69538.0,69527.0,0.014389]
[1771076793409,0.014387,69535.0,69528.0,0.01452]
[1771076793603,0.014387,69536.0,69528.0,0.01452]
[1771076793804,0.014387,69535.0,69528.0,0.01452]
[1771076794003,0.01452,69540.0,69528.0,0.01452]
[1771076794310,0.014387,69536.0,69528.0,0.01452]
[1771076795008,0.01452,69540.0,69528.0,0.01452]
[1771076795313,0.014386,69539.0,69529.0,0.014388]
[1771076795511,0.014385,69544.0,69529.0,0.19300285]
[1771076795700,0.014386,69543.0,69531.0,0.014388]
[1771076795904,0.014386,69543.0,69532.0,0.028908]
[1771076796105,0.014386,69541.0,69532.0,0.01452]
[1771076796300,0.014387,69539.0,69529.0,0.19300285]
[1771076796505,0.014386,69541.0,69531.0,0.014388]
[1771076796706,0.014386,69540.0,69531.0,0.014388]
[1771076797012,0.18221947,69544.0,69530.0,0.01452]
[1771076797408,0.01452,69543.0,69530.0,0.01452]
[1771076797608,0.01452,69543.0,69535.0,0.014387]
[1771076797814,0.01452,69543.0,69534.0,0.028907]
[1771076798015,0.01452,69543.0,69535.0,0.014387]
[1771076798315,0.014385,69546.0,69537.0,0.014387]
[1771076798518,0.014385,69547.0,69538.0,0.01452]
[1771076799013,0.014385,69548.0,69538.0,0.028907]
[1771076799214,0.01452,69552.0,69538.0,0.19313485]
[1771076799414,0.31175447,69556.0,69544.0,0.014385]
[1771076799415,0.014383,69554.0,69544.0,0.014385]
[1771076799713,0.014383,69554.0,69545.0,0.35143985]
[1771076800417,0.014383,69556.0,69545.0,0.33705485]
[1771076800618,0.014383,69554.0,69545.0,0.33705485]
[1771076802019,0.014383,69555.0,69545.0,0.35143985]
[1771076802207,0.014383,69556.0,69547.0,0.014385]
[1771076802410,0.014383,69555.0,69546.0,0.17202064]
[1771076802712,0.014383,69558.0,69546.0,0.18640564]
[1771076803019,0.014383,69556.0,69546.0,0.18640564]
[1771076803218,0.014383,69558.0,69546.0,0.18640564]
[1771076803618,0.014383,69556.0,69546.0,0.18640564]
[1771076804218,0.014383,69557.0,69546.0,0.20079064]
[1771076804519,0.014383,69557.0,69546.0,0.18640564]
[1771076804907,0.014382,69561.0,69548.0,0.17202064]
[1771076805107,0.014382,69560.0,69549.0,0.20092464]
[1771076807214,0.014382,69559.0,69549.0,0.20092464]
[1771076807423,0.014382,69560.0,69549.0,0.20092464]
[1771076807923,0.014383,69554.0,69544.0,0.17202064]
[1771076808124,0.014383,69554.0,69545.0,0.15844]
[1771076808524,0.014383,69554.0,69545.0,0.33046064]
[1771076808716,0.014383,69554.0,69546.0,0.17202064]
[1771076808912,0.028764,69562.0,69542.0,0.17202064]
[1771076809119,0.014384,69551.0,69543.0,0.15844]
[1771076809316,0.014384,69552.0,69544.0,0.01452]
[1771076811020,0.19076446,69567.0,69547.0,0.17202064]
[1771076811227,0.014382,69562.0,69551.0,0.014384]
[1771076811426,0.014382,69562.0,69552.0,0.01452]
[1771076811822,0.014382,69563.0,69552.0,0.01452]
[1771076812129,0.014382,69559.0,69552.0,0.01452]
[1771076813722,0.014382,69560.0,69552.0,0.01452]
[1771076814926,0.014382,69558.0,69546.0,0.014385]
[1771076815127,0.014382,69559.0,69547.0,0.172785]
[1771076815321,0.014382,69560.0,69548.0,0.014384]
[1771076815829,0.014382,69559.0,69548.0,0.014384]
[1771076816221,0.014382,69560.0,69548.0,0.014384]
[1771076817630,0.014382,69560.0,69548.0,0.20078864]
[1771076817821,0.014381,69564.0,69547.0,0.1584]
[1771076817822,0.014381,69565.0,69553.0,0.014383]
[1771076818025,0.014381,69566.0,69554.0,0.01452]
[1771076818534,0.014381,69565.0,69554.0,0.01452]
[1771076819826,0.014381,69564.0,69554.0,0.01452]
[1771076822028,0.01438,69569.0,69557.0,0.014383]
[1771076822227,0.043143,69567.0,69557.0,0.014383]
[1771076822428,0.043143,69567.0,69556.0,0.014383]
[1771076823634,0.01438,69569.0,69556.0,0.19149073]
[1771076823937,0.043143,69568.0,69556.0,0.19149073]
[1771076824133,0.0323473,69568.0,69557.0,0.014383]
[1771076824831,0.0323473,69568.0,69556.0,0.17710773]
[1771076825036,0.014382,69560.0,69554.0,0.01452]
[1771076825232,0.014381,69564.0,69555.0,0.01452]
[1771076826243,0.01452,69567.0,69556.0,0.014383]
[1771076826434,0.01452,69567.0,69556.0,0.028766]
[1771076826633,0.0323473,69567.0,69557.0,0.14388]
[1771076827136,0.0467283,69567.0,69557.0,0.14388]
[1771076827326,0.0611093,69567.0,69557.0,0.14388]
[1771076827528,0.014381,69565.0,69557.0,0.14388]
[1771076827734,0.014381,69564.0,69558.0,0.01452]
[1771076828039,0.014381,69565.0,69559.0,0.01452]
[1771076829136,0.0467283,69564.0,69559.0,0.01452]
[1771076830337,0.0467283,69564.0,69552.0,0.19149173]
[1771076830532,0.0467283,69564.0,69553.0,0.1584]
[1771076830741,0.01452,69568.0,69557.0,0.014383]
[1771076830939,0.0323473,69566.0,69558.0,0.01452]
[1771076831838,0.0323473,69566.0,69558.0,0.028902]
[1771076832339,0.0323473,69566.0,69560.0,0.014382]
[1771076832645,0.01452,69571.0,69560.0,0.014382]
[1771076832848,0.0323473,69570.0,69558.0,0.01452]
[1771076833144,0.0323473,69570.0,69559.0,0.014382]
[1771076833448,0.014381,69564.0,69560.0,0.01452]
[1771076833641,0.014381,69564.0,69561.0,0.01452]
[1771076833947,0.014381,69568.0,69561.0,0.01452]
[1771076834133,0.0467273,69569.0,69561.0,0.01452]
[1771076834337,0.01438,69569.0,69561.0,0.01452]
[1771076834545,0.0467273,69569.0,69561.0,0.01452]
[1771076834742,0.0467273,69569.0,69562.0,0.01452]
[1771076835043,0.01438,69569.0,69562.0,0.01452]
[1771076835840,0.0289,69571.0,69562.0,0.01452]
[1771076836039,0.0323473,69570.0,69562.0,0.01452]
[1771076836442,0.01438,69569.0,69562.0,0.01452]
[1771076836844,0.01438,69568.0,69552.0,0.19149173]
[1771076837046,0.014381,69567.0,69554.0,0.014383]
[1771076837248,0.014381,69567.0,69555.0,0.014383]
[1771076839448,0.18066384,69558.0,69540.0,0.014386]
[1771076839647,0.014383,69554.0,69542.0,0.014386]
[1771076839848,0.014384,69553.0,69542.0,0.014386]
[1771076840052,0.0467313,69553.0,69542.0,0.014386]
[1771076840248,0.0467313,69553.0,69543.0,0.1584]
[1771076840448,0.0467313,69553.0,69544.0,0.01452]
[1771076840859,0.0467313,69553.0,69541.0,0.014386]
[1771076841059,0.014384,69552.0,69542.0,0.1584]
[1771076841254,0.014384,69551.0,69542.0,0.1584]
[1771076841956,0.014384,69551.0,69525.0,0.13456884]
[1771076841957,0.014386,69543.0,69540.0,0.01452]
[1771076842158,0.014386,69543.0,69528.0,0.014389]
[1771076842360,0.014386,69540.0,69530.0,0.014388]
[1771076842554,0.014386,69541.0,69530.0,0.014388]
[1771076842762,0.014386,69541.0,69529.0,0.172788]
[1771076842763,0.014386,69540.0,69529.0,0.172788]
[1771076843062,0.014387,69539.0,69529.0,0.1584]
[1771076843258,0.014385,69544.0,69530.0,0.014388]
[1771076843453,0.014386,69543.0,69528.0,0.014389]
[1771076843659,0.014386,69543.0,69531.0,0.01452]
[1771076843856,0.18066384,69541.0,69519.0,0.01439]
[1771076844160,0.014387,69537.0,69526.0,0.014389]
[1771076844361,0.014387,69537.0,69527.0,0.01452]
[1771076844556,0.028774,69537.0,69526.0,0.014389]
[1771076844758,0.014388,69534.0,69522.0,0.14388]
[1771076844963,0.0467343,69536.0,69523.0,0.01452]
[1771076845158,0.014388,69534.0,69523.0,0.02891]
[1771076845357,0.014388,69533.0,69524.0,0.01452]
[1771076846165,0.0323473,69532.0,69525.0,0.01452]
[1771076846862,0.0323473,69532.0,69522.0,0.01439]
[1771076847062,0.0323473,69532.0,69523.0,0.1584]
[1771076848166,0.0323473,69532.0,69523.0,0.01439]
[1771076848354,0.0323473,69532.0,69524.0,0.01452]
[1771076848560,0.0323473,69532.0,69526.0,0.014389]
[1771076848761,0.0323473,69532.0,69527.0,0.014389]
[1771076848968,0.0323473,69532.0,69528.0,0.01452]
[1771076849863,0.014385,69545.0,69529.0,0.19149573]
[1771076850162,0.014386,69542.0,69531.0,0.014388]
[1771076850365,0.028906,69542.0,69532.0,0.01452]
[1771076850563,0.01452,69542.0,69532.0,0.028908]
[1771076851872,0.028906,69542.0,69532.0,0.01452]
[1771076852170,0.014386,69541.0,69529.0,0.014388]
[1771076852369,0.014386,69541.0,69530.0,0.01452]
[1771076853170,0.028906,69542.0,69530.0,0.01452]
[1771076853765,0.014386,69541.0,69530.0,0.01452]
[1771076853965,0.028906,69542.0,69530.0,0.028908]